[Event "Sunway Sitges Chess Festival"]
[Date "2024.12.21"]
[White "Sayce, Hannah"]
[Black "Perez Garcia, Saul"]
[WhiteElo "1821"]
[BlackElo "1930"]
[Round "7.42"]
[Result "1-0"]
[TimeControl "40/5400+30:1800+30"]

1. e4 {[%clk 1:30:48]} 1... c5 {[%clk 1:30:44]} 2. Nf3 {[%clk 1:30:45]} 2... Nc6
{[%clk 1:30:49]} 3. d4 {[%clk 1:30:56]} 3... cxd4 {[%clk 1:30:53]} 4. Nxd4
{[%clk 1:31:16]} 4... e5 {[%clk 1:31:02]} 5. Nb5 {[%clk 1:31:05]} 5... d6 {[%clk
1:30:57]} 6. N1c3 {[%clk 1:30:20]} 6... a6 {[%clk 1:30:40]} 7. Na3 {[%clk
1:30:11]} 7... Be7 {[%clk 1:29:06]} 8. Nd5 {[%clk 1:26:19]} 8... Nf6 {[%clk
1:29:53]} 9. Nxf6+ {[%clk 1:26:34]} 9... Bxf6 {[%clk 1:30:11]} 10. Nc4 {[%clk
1:24:41]} 10... O-O {[%clk 1:23:11]} 11. c3 {[%clk 1:23:20]} 11... Be6 {[%clk
1:23:28]} 12. Qxd6 {[%clk 1:11:51]} 12... Qe8 {[%clk 1:19:56]} 13. Qd1 {[%clk
0:58:18]} 13... b5 {[%clk 1:06:55]} 14. Ne3 {[%clk 1:07:32]} 14... Qe7 {[%clk
1:06:01]} 15. Qf3 {[%clk 1:02:50]} 15... Rfd8 {[%clk 1:03:18]} 16. Be2 {[%clk
1:01:51]} 16... b4 {[%clk 1:02:20]} 17. O-O {[%clk 1:01:36]} 17... bxc3 {[%clk
0:53:02]} 18. bxc3 {[%clk 1:01:58]} 18... Qc5 {[%clk 0:53:24]} 19. Nd1 {[%clk
1:00:44]} 19... Na5 {[%clk 0:48:19]} 20. Be3 {[%clk 0:52:38]} 20... Qa3 {[%clk
0:45:31]} 21. Bc1 {[%clk 0:41:46]} 21... Qa4 {[%clk 0:33:50]} 22. Nb2 {[%clk
0:47:44]} 22... Qc6 {[%clk 0:28:40]} 23. Nd1 {[%clk 0:39:54]} 23... Rac8 {[%clk
0:25:51]} 24. Re1 {[%clk 0:41:01]} 24... Qa4 {[%clk 0:19:25]} 25. Bxa6 {[%clk
0:34:12]} 25... Rc6 {[%clk 0:17:27]} 26. Bd3 {[%clk 0:32:37]} 26... Rcd6 {[%clk
0:12:28]} 27. Nb2 {[%clk 0:31:09]} 27... Qa3 {[%clk 0:12:05]} 28. Bc2 {[%clk
0:29:30]} 28... Qc5 {[%clk 0:08:21]} 29. Qe3 {[%clk 0:22:30]} 29... Qc7 {[%clk
0:07:24]} 30. a4 {[%clk 0:19:47]} 30... Bg5 {[%clk 0:06:56]} 31. Qxg5 {[%clk
0:11:52]} 31... Qxc3 {[%clk 0:07:23]} 32. Be3 {[%clk 0:09:37]} 32... Qxb2 {[%clk
0:06:26]} 33. Rad1 {[%clk 0:08:56]} 33... f6 {[%clk 0:01:44]} 34. Qh5 {[%clk
0:05:13]} 34... Bf7 {[%clk 0:01:48]} 35. Qe2 {[%clk 0:04:06]} 35... Bc4 {[%clk
0:02:12]} 36. Rxd6 {[%clk 0:04:12]} 36... Rxd6 {[%clk 0:01:33]} 37. Qg4 {[%clk
0:04:35]} 37... Be6 {[%clk 0:00:42]} 38. Qe2 {[%clk 0:04:16]} 38... Bc4 {[%clk
0:00:-41]} 39. Qg4 {[%clk 0:03:23]} 39... Be6 {[%clk 0:00:39]} 40. Qh5 {[%clk
0:32:11]} 40... g6 {[%clk 0:30:39]} 41. Qh4 {[%clk 0:15:08]} 41... Qc3 {[%clk
0:23:18]} 42. f3 {[%clk 0:21:25]} 42... Qxc2 {[%clk 0:08:38]} 43. Qxf6 {[%clk
0:21:02]} 43... Qc3 {[%clk 0:09:03]} 44. Bf2 {[%clk 0:21:26]} 44... Nc6 {[%clk
0:08:52]} 45. f4 {[%clk 0:19:17]} 45... Nd4 {[%clk 0:03:57]} 46. h4 {[%clk
0:18:57]} 46... exf4 {[%clk 0:03:53]} 47. e5 {[%clk 0:17:07]} 47... Nf5 {[%clk
0:01:58]} 48. Rb1 {[%clk 0:16:26]} 48... Bc8 {[%clk 0:01:54]} 49. Qg5 {[%clk
0:10:46]} 49... Qxe5 {[%clk 0:02:22]} 50. Re1 {[%clk 0:11:08]} 50... Qc3 {[%clk
0:01:04]} 51. Qxf4 {[%clk 0:11:07]} 51... Qf6 {[%clk 0:00:31]} 52. Re8+ {[%clk
0:11:10]} 52... Kf7 {[%clk 0:00:53]} 53. Rxc8 {[%clk 0:11:18]} 53... Rd1+ {[%clk
0:01:02]} 54. Kh2 {[%clk 0:11:21]} 54... Rd7 {[%clk 0:00:37]} 55. Qc4+ {[%clk
0:07:22]} 55... Kg7 {[%clk 0:00:31]} 56. Rg8+ {[%clk 0:06:31]} 56... Kh6 {[%clk
0:00:53]} 57. Qf4+ {[%clk 0:06:24]} 1-0

[Variant "Standard"]
[Site "Europe Echecs"]

[Event "Sunway Sitges Chess Festival"]
[Date "2024.12.21"]
[White "Gorshtein, Ido"]
[Black "Moussard, Jules"]
[WhiteElo "2422"]
[BlackElo "2649"]
[Round "8.1"]
[Result "1/2-1/2"]
[TimeControl "40/5400+30:1800+30"]

1. c4 {[%clk 1:30:58]} 1... e5 {[%clk 1:23:14]} 2. g3 {[%clk 1:31:19]} 2... Nf6
{[%clk 1:23:24]} 3. Bg2 {[%clk 1:31:41]} 3... h6 {[%clk 1:23:45]} 4. d3 {[%clk
1:28:13]} 4... Bb4+ {[%clk 1:23:37]} 5. Nd2 {[%clk 1:28:32]} 5... a5 {[%clk
1:23:28]} 6. Nf3 {[%clk 1:27:18]} 6... d6 {[%clk 1:23:27]} 7. O-O {[%clk
1:26:34]} 7... O-O {[%clk 1:22:04]} 8. a3 {[%clk 1:23:19]} 8... Bc5 {[%clk
1:21:24]} 9. b3 {[%clk 1:23:42]} 9... Nc6 {[%clk 1:19:18]} 10. Bb2 {[%clk
1:22:21]} 10... Bf5 {[%clk 1:17:28]} 11. Nb1 {[%clk 1:19:05]} 11... Re8 {[%clk
1:09:29]} 12. Nc3 {[%clk 1:18:59]} 12... Qd7 {[%clk 0:56:19]} 13. e3 {[%clk
1:16:21]} 13... Bh3 {[%clk 0:46:15]} 14. Qc2 {[%clk 1:05:11]} 14... Bxg2 {[%clk
0:40:24]} 15. Kxg2 {[%clk 1:05:26]} 15... d5 {[%clk 0:34:29]} 16. cxd5 {[%clk
1:03:53]} 16... Nxd5 {[%clk 0:34:43]} 17. Nxd5 {[%clk 1:03:45]} 17... Qxd5
{[%clk 0:35:08]} 18. Rac1 {[%clk 1:03:35]} 18... Bf8 {[%clk 0:35:10]} 19. Qc4
{[%clk 0:58:41]} 19... Rad8 {[%clk 0:35:29]} 20. Rfd1 {[%clk 0:58:11]} 20...
Qxc4 {[%clk 0:35:08]} 21. dxc4 {[%clk 0:55:05]} 21... Rxd1 {[%clk 0:33:05]} 22.
Rxd1 {[%clk 0:55:22]} 22... f6 {[%clk 0:33:27]} 23. g4 {[%clk 0:50:39]} 23...
Kf7 {[%clk 0:31:31]} 24. Kf1 {[%clk 0:47:56]} 24... Rd8 {[%clk 0:24:34]} 25.
Rxd8 {[%clk 0:46:17]} 25... Nxd8 {[%clk 0:27:32]} 26. Nd2 {[%clk 0:45:36]} 26...
b6 {[%clk 0:24:39]} 27. Ke2 {[%clk 0:45:44]} 27... Ke6 {[%clk 0:24:39]} 28. h3
{[%clk 0:41:49]} 28... g6 {[%clk 0:24:01]} 29. f4 {[%clk 0:40:22]} 29... Nc6
{[%clk 0:21:03]} 30. Nf3 {[%clk 0:35:37]} 30... exf4 {[%clk 0:21:11]} 31. exf4
{[%clk 0:35:40]} 1/2-1/2

[Variant "Standard"]
[Site "Europe Echecs"]

[Event "Sunway Sitges Chess Festival"]
[Date "2024.12.21"]
[White "Maurizzi, Marc`Andria"]
[Black "Girel, Joseph"]
[WhiteElo "2477"]
[BlackElo "2494"]
[Round "8.2"]
[Result "1/2-1/2"]
[TimeControl "40/5400+30:1800+30"]

1. c4 {[%clk 1:30:17]} 1... e6 {[%clk 1:30:05]} 2. Nf3 {[%clk 1:29:37]} 2... d5
{[%clk 1:29:19]} 3. e3 {[%clk 1:28:03]} 3... Nf6 {[%clk 1:29:35]} 4. Nc3 {[%clk
1:28:27]} 4... a6 {[%clk 1:26:21]} 5. d4 {[%clk 1:14:49]} 5... dxc4 {[%clk
1:26:02]} 6. a4 {[%clk 1:15:11]} 6... c5 {[%clk 1:26:20]} 7. Bxc4 {[%clk
1:15:38]} 7... Nc6 {[%clk 1:26:36]} 8. O-O {[%clk 1:16:05]} 8... Be7 {[%clk
1:26:31]} 9. dxc5 {[%clk 1:12:43]} 9... Qxd1 {[%clk 1:24:37]} 10. Rxd1 {[%clk
1:12:38]} 10... Bxc5 {[%clk 1:24:58]} 11. Nd2 {[%clk 1:11:04]} 11... Ke7 {[%clk
1:21:04]} 12. b3 {[%clk 1:07:24]} 12... Rd8 {[%clk 1:18:25]} 13. Bb2 {[%clk
1:07:13]} 13... Bb4 {[%clk 1:05:35]} 14. Be2 {[%clk 0:50:16]} 14... Na5 {[%clk
0:56:04]} 15. Ba3 {[%clk 0:42:25]} 15... Bxa3 {[%clk 0:54:17]} 16. Rxa3 {[%clk
0:42:43]} 16... Nc6 {[%clk 0:51:01]} 17. Raa1 {[%clk 0:39:50]} 17... Bd7 {[%clk
0:49:58]} 18. Bf3 {[%clk 0:37:34]} 18... Be8 {[%clk 0:50:21]} 19. Nc4 {[%clk
0:37:19]} 19... Rxd1+ {[%clk 0:45:31]} 20. Rxd1 {[%clk 0:37:26]} 20... Rd8
{[%clk 0:45:25]} 21. Rc1 {[%clk 0:33:21]} 21... Nd5 {[%clk 0:43:36]} 22. Kf1
{[%clk 0:28:28]} 22... Nxc3 {[%clk 0:32:54]} 23. Rxc3 {[%clk 0:28:55]} 23... b5
{[%clk 0:32:13]} 24. Bxc6 {[%clk 0:28:24]} 24... Bxc6 {[%clk 0:31:40]} 25. Ne5
{[%clk 0:28:44]} 25... Be8 {[%clk 0:31:27]} 26. Nc6+ {[%clk 0:29:08]} 26... Bxc6
{[%clk 0:31:26]} 27. Rxc6 {[%clk 0:29:37]} 27... bxa4 {[%clk 0:30:48]} 28. bxa4
{[%clk 0:30:03]} 28... Rd6 {[%clk 0:31:07]} 29. Rc7+ {[%clk 0:30:28]} 29... Rd7
{[%clk 0:31:10]} 30. Rc6 {[%clk 0:30:46]} 30... Rd6 {[%clk 0:31:34]} 31. Rc7+
{[%clk 0:31:13]} 31... Rd7 {[%clk 0:31:55]} 1/2-1/2

[Variant "Standard"]
[Site "Europe Echecs"]

[Event "Sunway Sitges Chess Festival"]
[Date "2024.12.21"]
[White "Alekseenko, Kirill"]
[Black "Vetokhin, Savva"]
[WhiteElo "2673"]
[BlackElo "2502"]
[Round "8.3"]
[Result "0-1"]
[TimeControl "40/5400+30:1800+30"]

1. e4 {[%clk 1:28:23]} 1... c5 {[%clk 1:30:52]} 2. Nf3 {[%clk 1:28:30]} 2... d6
{[%clk 1:31:04]} 3. d4 {[%clk 1:28:18]} 3... cxd4 {[%clk 1:31:26]} 4. Nxd4
{[%clk 1:28:43]} 4... Nf6 {[%clk 1:31:51]} 5. Nc3 {[%clk 1:29:07]} 5... Nc6
{[%clk 1:32:15]} 6. Bc4 {[%clk 1:28:33]} 6... Qb6 {[%clk 1:32:00]} 7. Nb3 {[%clk
1:28:18]} 7... e6 {[%clk 1:31:57]} 8. Be3 {[%clk 1:28:05]} 8... Qc7 {[%clk
1:31:58]} 9. Bd3 {[%clk 1:28:18]} 9... a6 {[%clk 1:31:09]} 10. O-O {[%clk
1:28:20]} 10... b5 {[%clk 1:30:15]} 11. a4 {[%clk 1:28:06]} 11... b4 {[%clk
1:28:37]} 12. Nb5 {[%clk 1:28:28]} 12... Qb8 {[%clk 1:23:03]} 13. N5d4 {[%clk
1:25:31]} 13... Nxd4 {[%clk 1:20:05]} 14. Nxd4 {[%clk 1:25:47]} 14... Bb7 {[%clk
1:19:26]} 15. c3 {[%clk 1:14:29]} 15... bxc3 {[%clk 1:12:48]} 16. a5 {[%clk
1:08:34]} 16... Qd8 {[%clk 1:00:15]} 17. Bc2 {[%clk 0:51:56]} 17... Be7 {[%clk
0:49:27]} 18. Ba4+ {[%clk 0:52:16]} 18... Nd7 {[%clk 0:46:22]} 19. Nc6 {[%clk
0:43:48]} 19... Qc7 {[%clk 0:35:49]} 20. Nxe7 {[%clk 0:35:54]} 20... Kxe7 {[%clk
0:35:02]} 21. Rc1 {[%clk 0:27:32]} 21... Qxa5 {[%clk 0:32:21]} 22. Rxc3 {[%clk
0:25:14]} 22... Rhc8 {[%clk 0:30:00]} 23. Bf4 {[%clk 0:16:49]} 23... Ne5 {[%clk
0:27:02]} 24. Ra3 {[%clk 0:15:24]} 24... Qc5 {[%clk 0:24:47]} 25. b4 {[%clk
0:13:47]} 25... Qxb4 {[%clk 0:21:53]} 26. Rg3 {[%clk 0:12:02]} 26... Qxe4 {[%clk
0:20:34]} 27. Bg5+ {[%clk 0:09:58]} 27... f6 {[%clk 0:18:22]} 28. Re1 {[%clk
0:07:28]} 28... Qf5 {[%clk 0:17:43]} 29. Bc1 {[%clk 0:04:36]} 29... g6 {[%clk
0:15:50]} 30. Ba3 {[%clk 0:04:40]} 30... Bd5 {[%clk 0:15:00]} 31. Qd2 {[%clk
0:03:49]} 31... Kf7 {[%clk 0:12:09]} 32. Bxd6 {[%clk 0:02:59]} 32... Nc4 {[%clk
0:11:36]} 33. Qh6 {[%clk 0:03:24]} 33... Qh5 {[%clk 0:10:52]} 34. Qxh5 {[%clk
0:02:52]} 34... gxh5 {[%clk 0:11:21]} 35. Bf4 {[%clk 0:02:18]} 35... e5 {[%clk
0:10:09]} 36. Bc1 {[%clk 0:01:18]} 36... Rg8 {[%clk 0:09:55]} 37. Rd1 {[%clk
0:01:07]} 37... Nb6 {[%clk 0:09:25]} 38. Bc2 {[%clk 0:00:52]} 38... h4 {[%clk
0:07:25]} 39. Rxg8 {[%clk 0:01:07]} 39... Rxg8 {[%clk 0:07:53]} 40. g3 {[%clk
0:30:34]} 40... hxg3 {[%clk 0:36:25]} 41. fxg3 {[%clk 0:28:09]} 41... Rc8 {[%clk
0:33:59]} 42. Bxh7 {[%clk 0:20:51]} 42... Bb3 {[%clk 0:34:16]} 43. Rf1 {[%clk
0:19:10]} 43... Bc2 {[%clk 0:27:20]} 44. Be3 {[%clk 0:13:14]} 44... Nd5 {[%clk
0:31:48]} 45. Bxc2 {[%clk 0:11:44]} 45... Rxc2 {[%clk 0:31:50]} 46. Bf2 {[%clk
0:11:34]} 46... Ra2 {[%clk 0:29:14]} 47. h4 {[%clk 0:09:21]} 47... a5 {[%clk
0:27:39]} 48. h5 {[%clk 0:09:13]} 48... Nc3 {[%clk 0:27:22]} 49. Be1 {[%clk
0:03:09]} 49... Ne2+ {[%clk 0:26:57]} 50. Kf2 {[%clk 0:02:17]} 50... Nd4+ {[%clk
0:26:12]} 51. Ke3 {[%clk 0:01:40]} 51... Ra1 {[%clk 0:26:23]} 52. Kd3 {[%clk
0:01:21]} 52... a4 {[%clk 0:25:49]} 53. g4 {[%clk 0:01:02]} 53... Rd1+ {[%clk
0:25:38]} 0-1

[Variant "Standard"]
[Site "Europe Echecs"]

[Event "Sunway Sitges Chess Festival"]
[Date "2024.12.21"]
[White "Tin, Jingyao"]
[Black "Kristoferitsch, Daniel"]
[WhiteElo "2480"]
[BlackElo "2287"]
[Round "8.4"]
[Result "1/2-1/2"]
[TimeControl "40/5400+30:1800+30"]

1. c4 {[%clk 1:28:12]} 1... c5 {[%clk 1:30:16]} 2. Nc3 {[%clk 1:28:23]} 2... Nc6
{[%clk 1:30:37]} 3. Nf3 {[%clk 1:28:47]} 3... e5 {[%clk 1:30:15]} 4. g3 {[%clk
1:27:05]} 4... g6 {[%clk 1:30:37]} 5. Bg2 {[%clk 1:27:30]} 5... Bg7 {[%clk
1:31:00]} 6. O-O {[%clk 1:27:55]} 6... Nge7 {[%clk 1:31:23]} 7. Ne1 {[%clk
1:28:01]} 7... d6 {[%clk 1:29:27]} 8. d3 {[%clk 1:27:13]} 8... Be6 {[%clk
1:29:17]} 9. a3 {[%clk 1:25:57]} 9... O-O {[%clk 1:21:33]} 10. Bg5 {[%clk
1:18:46]} 10... h6 {[%clk 1:16:19]} 11. Bxe7 {[%clk 1:18:23]} 11... Qxe7 {[%clk
1:11:12]} 12. Nc2 {[%clk 1:16:17]} 12... f5 {[%clk 1:10:33]} 13. Ne3 {[%clk
1:11:00]} 13... f4 {[%clk 0:59:18]} 14. Ned5 {[%clk 1:10:49]} 14... Qf7 {[%clk
0:59:42]} 15. Nb5 {[%clk 1:03:17]} 15... Rad8 {[%clk 0:51:52]} 16. Ndc7 {[%clk
1:02:46]} 16... Kh7 {[%clk 0:52:16]} 17. Nxe6 {[%clk 1:02:44]} 17... Qxe6 {[%clk
0:52:39]} 18. Rb1 {[%clk 1:00:22]} 18... h5 {[%clk 0:37:00]} 19. Be4 {[%clk
0:49:09]} 19... Bh6 {[%clk 0:35:48]} 20. Kg2 {[%clk 0:44:58]} 20... h4 {[%clk
0:32:59]} 21. gxh4 {[%clk 0:42:40]} 21... f3+ {[%clk 0:26:01]} 22. Bxf3 {[%clk
0:36:20]} 22... Rxf3 {[%clk 0:25:10]} 23. exf3 {[%clk 0:36:29]} 23... Rf8 {[%clk
0:20:19]} 24. Re1 {[%clk 0:31:15]} 24... Bf4 {[%clk 0:10:36]} 25. Nc7 {[%clk
0:19:14]} 25... Qe7 {[%clk 0:10:14]} 26. Nd5 {[%clk 0:19:37]} 26... Qxh4 {[%clk
0:10:38]} 27. Nxf4 {[%clk 0:20:02]} 27... Rxf4 {[%clk 0:10:29]} 28. Re4 {[%clk
0:17:00]} 28... Nd4 {[%clk 0:10:31]} 29. Qc1 {[%clk 0:10:58]} 29... Qg5+ {[%clk
0:05:11]} 30. Kh1 {[%clk 0:09:53]} 30... Nxf3 {[%clk 0:05:35]} 31. Rxf4 {[%clk
0:09:33]} 31... exf4 {[%clk 0:05:59]} 32. Qf1 {[%clk 0:09:41]} 32... Qf5 {[%clk
0:02:26]} 33. Rd1 {[%clk 0:09:24]} 33... Qh5 {[%clk 0:02:50]} 34. Qg2 {[%clk
0:08:58]} 34... Kh6 {[%clk 0:02:01]} 35. h3 {[%clk 0:06:44]} 35... Ne5 {[%clk
0:01:44]} 36. Rd2 {[%clk 0:06:35]} 36... g5 {[%clk 0:01:34]} 37. b3 {[%clk
0:04:27]} 37... g4 {[%clk 0:01:31]} 38. d4 {[%clk 0:03:28]} 38... Nf3 {[%clk
0:01:19]} 39. Re2 {[%clk 0:03:04]} 39... Nxd4 {[%clk 0:01:31]} 40. Re7 {[%clk
0:33:12]} 40... g3 {[%clk 0:30:40]} 41. Re1 {[%clk 0:24:33]} 41... Ne2 {[%clk
0:25:53]} 42. fxg3 {[%clk 0:13:48]} 42... f3 {[%clk 0:24:13]} 43. Qh2 {[%clk
0:13:50]} 43... Qe5 {[%clk 0:23:07]} 44. Qf2 {[%clk 0:13:41]} 44... Nxg3+ {[%clk
0:21:37]} 45. Kg1 {[%clk 0:14:03]} 45... Ne2+ {[%clk 0:21:53]} 46. Kh1 {[%clk
0:12:37]} 46... Ng3+ {[%clk 0:13:24]} 47. Kg1 {[%clk 0:12:10]} 47... Ne2+ {[%clk
0:13:47]} 48. Kh1 {[%clk 0:12:35]} 48... Ng3+ {[%clk 0:11:29]} 1/2-1/2

[Variant "Standard"]
[Site "Europe Echecs"]

[Event "Sunway Sitges Chess Festival"]
[Date "2024.12.21"]
[White "Abergel, Thal"]
[Black "Li, Di"]
[WhiteElo "2411"]
[BlackElo "2440"]
[Round "8.5"]
[Result "0-1"]
[TimeControl "40/5400+30:1800+30"]

1. Nf3 {[%clk 1:30:58]} 1... Nf6 {[%clk 1:30:45]} 2. c4 {[%clk 1:29:49]} 2... g6
{[%clk 1:30:21]} 3. b3 {[%clk 1:29:53]} 3... Bg7 {[%clk 1:30:45]} 4. Bb2 {[%clk
1:30:16]} 4... c5 {[%clk 1:30:47]} 5. g3 {[%clk 1:30:06]} 5... d6 {[%clk
1:31:06]} 6. d4 {[%clk 1:28:46]} 6... Ne4 {[%clk 1:31:10]} 7. Nfd2 {[%clk
1:26:58]} 7... Ng5 {[%clk 1:22:01]} 8. h4 {[%clk 1:10:03]} 8... Ne6 {[%clk
1:22:24]} 9. Nf3 {[%clk 1:09:45]} 9... Nxd4 {[%clk 1:18:37]} 10. Nxd4 {[%clk
1:10:08]} 10... cxd4 {[%clk 1:19:03]} 11. Bg2 {[%clk 1:10:26]} 11... e5 {[%clk
1:16:51]} 12. O-O {[%clk 1:10:35]} 12... O-O {[%clk 1:16:59]} 13. Na3 {[%clk
1:09:15]} 13... Nc6 {[%clk 1:13:40]} 14. Nc2 {[%clk 1:08:43]} 14... g5 {[%clk
0:58:08]} 15. hxg5 {[%clk 1:01:09]} 15... Qxg5 {[%clk 0:57:50]} 16. Ba3 {[%clk
1:00:42]} 16... Qg6 {[%clk 0:57:05]} 17. c5 {[%clk 0:49:46]} 17... dxc5 {[%clk
0:55:39]} 18. Bxc5 {[%clk 0:50:15]} 18... Rd8 {[%clk 0:53:44]} 19. Nb4 {[%clk
0:50:42]} 19... Nxb4 {[%clk 0:53:27]} 20. Bxb4 {[%clk 0:51:11]} 20... e4 {[%clk
0:51:44]} 21. Be7 {[%clk 0:50:38]} 21... Re8 {[%clk 0:51:22]} 22. Bh4 {[%clk
0:50:46]} 22... Bg4 {[%clk 0:48:48]} 23. f3 {[%clk 0:49:03]} 23... Bf5 {[%clk
0:45:04]} 24. Rc1 {[%clk 0:42:38]} 24... e3 {[%clk 0:38:00]} 25. Re1 {[%clk
0:42:24]} 25... Rac8 {[%clk 0:37:50]} 26. Rc4 {[%clk 0:41:12]} 26... Rxc4 {[%clk
0:33:20]} 27. bxc4 {[%clk 0:41:20]} 27... Bc2 {[%clk 0:33:48]} 28. Qc1 {[%clk
0:41:38]} 28... d3 {[%clk 0:34:06]} 29. exd3 {[%clk 0:41:45]} 29... Qxd3 {[%clk
0:34:34]} 30. Bg5 {[%clk 0:38:20]} 30... e2 {[%clk 0:28:12]} 31. Kh2 {[%clk
0:29:53]} 31... Qxc4 {[%clk 0:26:32]} 32. Bh6 {[%clk 0:29:34]} 32... Bxh6 {[%clk
0:25:51]} 33. Qxh6 {[%clk 0:29:55]} 33... Qc3 {[%clk 0:26:12]} 34. Qg5+ {[%clk
0:29:58]} 34... Bg6 {[%clk 0:26:23]} 35. Qb5 {[%clk 0:30:14]} 35... Re5 {[%clk
0:26:09]} 0-1

[Variant "Standard"]
[Site "Europe Echecs"]

[Event "Sunway Sitges Chess Festival"]
[Date "2024.12.21"]
[White "Aloma Vidal, Robert"]
[Black "Gavrilescu, David"]
[WhiteElo "2398"]
[BlackElo "2549"]
[Round "8.6"]
[Result "0-1"]
[TimeControl "40/5400+30:1800+30"]

1. Nf3 {[%clk 1:21:40]} 1... d5 {[%clk 1:30:23]} 2. g3 {[%clk 1:22:05]} 2... Nf6
{[%clk 1:30:07]} 3. Bg2 {[%clk 1:22:29]} 3... e6 {[%clk 1:30:07]} 4. d4 {[%clk
1:22:52]} 4... Bd6 {[%clk 1:29:22]} 5. c4 {[%clk 1:22:16]} 5... O-O {[%clk
1:29:09]} 6. O-O {[%clk 1:22:22]} 6... Nc6 {[%clk 1:29:01]} 7. Nbd2 {[%clk
1:07:59]} 7... a5 {[%clk 1:28:26]} 8. b3 {[%clk 1:07:55]} 8... Ne4 {[%clk
1:25:26]} 9. Nxe4 {[%clk 1:02:36]} 9... dxe4 {[%clk 1:25:14]} 10. Ne1 {[%clk
0:57:33]} 10... f5 {[%clk 1:18:53]} 11. Nc2 {[%clk 0:57:40]} 11... Bd7 {[%clk
1:11:18]} 12. Bb2 {[%clk 0:35:49]} 12... Qe8 {[%clk 1:03:33]} 13. Na3 {[%clk
0:33:16]} 13... Nb4 {[%clk 0:57:19]} 14. Nb1 {[%clk 0:31:37]} 14... Rd8 {[%clk
0:49:29]} 15. a3 {[%clk 0:30:58]} 15... Na6 {[%clk 0:48:43]} 16. e3 {[%clk
0:28:37]} 16... c5 {[%clk 0:45:09]} 17. Nc3 {[%clk 0:25:33]} 17... cxd4 {[%clk
0:36:40]} 18. exd4 {[%clk 0:21:21]} 18... e5 {[%clk 0:36:33]} 19. b4 {[%clk
0:14:30]} 19... axb4 {[%clk 0:25:35]} 20. axb4 {[%clk 0:14:57]} 20... exd4
{[%clk 0:24:50]} 21. Qxd4 {[%clk 0:14:26]} 21... Be5 {[%clk 0:25:16]} 22. Qd5+
{[%clk 0:11:11]} 22... Kh8 {[%clk 0:25:38]} 23. Qa5 {[%clk 0:05:27]} 23... f4
{[%clk 0:18:00]} 24. gxf4 {[%clk 0:03:25]} 24... Bd4 {[%clk 0:07:18]} 25. Rad1
{[%clk 0:02:53]} 25... Bg4 {[%clk 0:06:09]} 26. Rxd4 {[%clk 0:01:39]} 26... Rxd4
{[%clk 0:06:37]} 27. Nd5 {[%clk 0:01:02]} 27... Rd3 {[%clk 0:03:32]} 28. Ne3
{[%clk 0:00:44]} 28... Bf3 {[%clk 0:03:18]} 29. Bxf3 {[%clk 0:00:58]} 29... exf3
{[%clk 0:03:41]} 30. Kh1 {[%clk 0:01:21]} 30... Rd7 {[%clk 0:02:47]} 31. f5
{[%clk 0:01:20]} 31... Qd8 {[%clk 0:02:13]} 32. Qa3 {[%clk 0:00:41]} 32... Nc7
{[%clk 0:02:08]} 33. f6 {[%clk 0:00:48]} 33... gxf6 {[%clk 0:02:12]} 34. b5
{[%clk 0:01:10]} 34... Rg8 {[%clk 0:01:21]} 35. b6 {[%clk 0:01:22]} 35... Ne8
{[%clk 0:01:09]} 36. Nd5 {[%clk 0:01:02]} 36... Rxd5 {[%clk 0:01:34]} 37. cxd5
{[%clk 0:01:29]} 37... Qxd5 {[%clk 0:02:00]} 38. Re1 {[%clk 0:00:50]} 38... Qf5
{[%clk 0:01:04]} 39. Qc3 {[%clk 0:00:38]} 39... h5 {[%clk 0:00:44]} 40. Qe3
{[%clk 0:30:40]} 40... Kh7 {[%clk 0:30:43]} 41. Bc1 {[%clk 0:25:57]} 41... Kh8
{[%clk 0:11:00]} 42. Qh6+ {[%clk 0:20:19]} 42... Qh7 {[%clk 0:11:21]} 43. Qxh7+
{[%clk 0:18:05]} 43... Kxh7 {[%clk 0:11:50]} 44. Re7+ {[%clk 0:18:19]} 44... Ng7
{[%clk 0:11:16]} 45. h4 {[%clk 0:11:53]} 45... Rd8 {[%clk 0:10:18]} 46. Bf4
{[%clk 0:08:58]} 46... Rd4 {[%clk 0:08:08]} 47. Bg3 {[%clk 0:03:50]} 47... Kg6
{[%clk 0:08:31]} 48. Rxb7 {[%clk 0:03:37]} 48... Nf5 {[%clk 0:08:54]} 49. Kh2
{[%clk 0:03:49]} 49... Nxg3 {[%clk 0:07:30]} 50. Kxg3 {[%clk 0:04:13]} 50...
Rg4+ {[%clk 0:07:33]} 51. Kh3 {[%clk 0:03:30]} 51... Rb4 {[%clk 0:06:18]} 52.
Rb8 {[%clk 0:03:50]} 52... Kf5 {[%clk 0:06:31]} 53. Kg3 {[%clk 0:03:41]} 53...
Rg4+ {[%clk 0:04:52]} 54. Kh3 {[%clk 0:03:51]} 54... Rb4 {[%clk 0:05:18]} 55. b7
{[%clk 0:03:47]} 55... Kf4 {[%clk 0:05:26]} 56. Kh2 {[%clk 0:01:01]} 56... f5
{[%clk 0:03:15]} 57. Kg1 {[%clk 0:01:21]} 57... Rb2 {[%clk 0:02:59]} 58. Kh1
{[%clk 0:00:45]} 58... Rb6 {[%clk 0:01:18]} 59. Kg1 {[%clk 0:00:56]} 59... Rb1+
{[%clk 0:01:00]} 60. Kh2 {[%clk 0:01:25]} 60... Rb5 {[%clk 0:01:23]} 61. Kg1
{[%clk 0:01:37]} 61... Rb2 {[%clk 0:01:47]} 62. Kh1 {[%clk 0:01:56]} 62... Rb6
{[%clk 0:02:13]} 63. Kg1 {[%clk 0:02:17]} 63... Rg6+ {[%clk 0:01:15]} 64. Kh1
{[%clk 0:02:31]} 64... Rg7 {[%clk 0:01:18]} 65. Ra8 {[%clk 0:00:39]} 65... Rxb7
{[%clk 0:01:46]} 66. Ra4+ {[%clk 0:01:01]} 66... Ke5 {[%clk 0:02:12]} 67. Kh2
{[%clk 0:00:48]} 67... Rg7 {[%clk 0:01:18]} 68. Kh3 {[%clk 0:00:52]} 68... Rg1
{[%clk 0:01:23]} 69. Ra3 {[%clk 0:00:47]} 69... Rh1+ {[%clk 0:01:35]} 0-1

[Variant "Standard"]
[Site "Europe Echecs"]